fUST/lending_fUST_20250602
["ID","MTS","AMOUNT","RATE_DAILY","PERIOD"]
[363701486,1748825440274,-1000.0,0.00020067,2]
[363701488,1748825440283,-430.0,0.00020073,2]
[363701490,1748825440293,-430.0,0.00020073,2]
[363701492,1748825440303,-430.0,0.00020073,2]
[363701494,1748825440312,-430.0,0.00020073,2]
[363701496,1748825440321,-430.0,0.00020073,2]
[363701498,1748825440331,-1774.072344,0.00020176,2]
[363701501,1748825440341,-256.57827,0.00020187,2]
[363701502,1748825440350,-430.0,0.00020195,2]
[363701504,1748825440360,-430.0,0.00020347,2]
[363701506,1748825440370,-430.0,0.00020347,2]
[363701508,1748825440379,-430.0,0.00020347,2]
[363701510,1748825440389,-430.0,0.00020347,2]
[363701512,1748825440399,-430.0,0.00020347,2]
[363701514,1748825440408,-1774.072344,0.00020383,3]
[363701517,1748825440418,-430.0,0.00020469,2]
[363701518,1748825440428,-1774.072344,0.0002059,3]
[363701521,1748825440438,-264.04,0.000206,2]
[363701522,1748825440447,-430.0,0.00020621,2]
[363701525,1748825440457,-449.47,0.00020621,2]
[363701527,1748825440469,-430.0,0.00020621,2]
[363701529,1748825440478,-430.0,0.00020621,2]
[363701531,1748825440487,-430.0,0.00020621,2]
[363701533,1748825440497,-177.30792644,0.00020714,2]
[363701535,1748825440506,-430.0,0.00020743,2]
[363701537,1748825440515,-1774.072344,0.00020797,4]
[363701539,1748825440525,-587.0,0.00020854,2]
[363701541,1748825440534,-430.0,0.00020895,2]
[363701543,1748825440543,-430.0,0.00020895,2]
[363701545,1748825440554,-187.48733768,0.00020895,2]
[363701547,1748825440563,-430.0,0.00020895,2]
[363701549,1748825440573,-1774.072344,0.00021003,4]
[363701551,1748825440582,-430.0,0.00021017,2]
[363701553,1748825440592,-1000.0,0.00021163,2]
[363701555,1748825440601,-453.95000001,0.00021169,2]
[363701557,1748825440611,-430.0,0.00021169,2]
[363701559,1748825440621,-430.0,0.00021169,2]
[363701561,1748825440631,-1774.072344,0.0002121,4]
[363701563,1748825440640,-430.0,0.00021291,2]
[363701565,1748825440649,-1774.072344,0.00021417,5]
[363701567,1748825440659,-430.0,0.00021443,2]
[363701569,1748825440668,-430.0,0.00021443,2]
[363701571,1748825440678,-2232.91,0.00021541,2]
[363701573,1748825440688,-430.0,0.00021565,2]
[363701575,1748825440697,-500.0,0.00021622,2]
[363701577,1748825440706,-500.0,0.00021622,2]
[363701579,1748825440716,-500.0,0.00021622,2]
[363701581,1748825440725,-749.33263306,0.00021622,2]
[363701583,1748825440733,-749.33263306,0.00021622,2]
[363701585,1748825440742,-221.20968948,0.00021622,2]
[363701587,1748825440752,-500.0,0.00021622,2]
[363701589,1748825440761,-749.33263306,0.00021622,2]
[363701591,1748825440771,-749.33263306,0.00021622,2]
[363701593,1748825440780,-500.0,0.00021622,2]
[363701595,1748825440790,-749.33263306,0.00021622,2]
[363701597,1748825440799,-500.0,0.00021622,2]
[363701599,1748825440808,-749.33263306,0.00021622,2]
[363701601,1748825440818,-340.44266687,0.00021622,2]
[363701602,1748825440827,-500.0,0.00021622,2]
[363701604,1748825440837,-749.33263306,0.00021622,2]
[363701607,1748825440846,-749.33263306,0.00021622,2]
[363701608,1748825440856,-749.33263306,0.00021622,2]
[363701610,1748825440866,-749.33263306,0.00021622,2]
[363701612,1748825440875,-749.33263306,0.00021622,2]
[363701614,1748825440885,-749.33263306,0.00021622,2]
[363701616,1748825440894,-749.33263306,0.00021622,2]
[363701618,1748825440904,-749.33263306,0.00021622,2]
[363701620,1748825440913,-749.33263306,0.00021622,2]
[363701622,1748825440923,-749.33263306,0.00021622,2]
[363701625,1748825440934,-749.33263306,0.00021622,2]
[363701627,1748825440944,-749.33263306,0.00021622,2]
[363701628,1748825440953,-749.33263306,0.00021622,2]
[363701630,1748825440963,-749.33263306,0.00021622,2]
[363701632,1748825440972,-36021.41649,0.00021623,2]
[363701634,1748825440982,-1774.072344,0.00021624,5]
[363701636,1748825440992,-370.65929463,0.00021688,2]
[363701639,1748825441002,-430.0,0.00021717,2]
[363701641,1748825441012,-430.0,0.00021717,2]
[363701643,1748825441021,-1774.072344,0.00021831,6]
[363701645,1748825441031,-430.0,0.00021839,2]
[363701647,1748825441041,-250.0,0.0002184,2]
[363701649,1748825441050,-5000.0,0.00021874,2]
[363701651,1748825441059,-264.04,0.000219,2]
[363701653,1748825441068,-150.0,0.00021918,2]
[363701654,1748825441078,-611.01090483,0.00021918,2]
[363701656,1748825441087,-271.81,0.00021991,2]
[363701659,1748825441097,-430.0,0.00021991,2]
[363701661,1748825441107,-171.0,0.00022,2]
[363701663,1748825441116,-1774.072344,0.00022038,6]
[363701665,1748825441129,-300.56990866,0.00022113,2]
[363701667,1748825441138,-1774.072344,0.00022245,6]
[363701669,1748825441147,-1000.0,0.00022259,2]
[363701671,1748825441158,-571.78,0.00022265,2]
[363701673,1748825441167,-185.46833955,0.00022384,2]
[363701675,1748825441177,-1774.072344,0.00022452,7]
[363701677,1748825441187,-7498.7979491,0.00022592,2]
[363701679,1748825441197,-5000.0,0.00022592,2]
[363701681,1748825441206,-5000.0,0.00022592,2]
[363701683,1748825441215,-5000.0,0.00022592,2]
[363701685,1748825441224,-5000.0,0.00022592,2]
[363701687,1748825441233,-501.95,0.00022595,3]
[363701689,1748825441243,-190.14,0.00022595,3]
[363701691,1748825441252,-158.45,0.00022595,3]
[363701693,1748825441262,-475.35,0.00022595,3]
[363701695,1748825441271,-154.67873888,0.00022606,2]
[363701696,1748825441281,-207.4,0.00022606,2]
[363701699,1748825441291,-151.0,0.00022606,2]
[363701700,1748825441301,-2000.0,0.00022606,2]
[363701703,1748825441314,-300.0,0.00022606,2]
[363701705,1748825441327,-2000.0,0.00022606,2]
[363701708,1748825441339,-300.0,0.00022606,2]
[363701710,1748825441352,-2000.0,0.00022606,2]
[363701712,1748825441364,-300.0,0.00022606,2]
[363701714,1748825441375,-2000.0,0.00022606,2]
[363701716,1748825441385,-300.0,0.00022606,2]
[363701718,1748825441397,-2000.0,0.00022606,2]
[363701721,1748825441410,-300.0,0.00022606,2]
[363701723,1748825441422,-2000.0,0.00022606,2]
[363701725,1748825441435,-300.0,0.00022606,2]
[363701728,1748825441447,-5000.0,0.00022606,2]
[363701730,1748825441459,-2000.0,0.00022606,2]
[363701732,1748825441471,-300.0,0.00022606,2]
[363701734,1748825441483,-2000.0,0.00022606,2]
[363701737,1748825441495,-300.0,0.00022606,2]
[363701739,1748825441507,-300.0,0.00022606,2]
[363701741,1748825441521,-2000.0,0.00022606,2]
[363701743,1748825441533,-300.0,0.00022606,2]
[363701745,1748825441544,-2000.0,0.00022606,2]
[363701748,1748825441556,-300.0,0.00022606,2]
[363701750,1748825441568,-2000.0,0.00022606,2]
[363701752,1748825441579,-300.0,0.00022606,2]
[363701754,1748825441590,-2000.0,0.00022606,2]
[363701756,1748825441601,-1215.5802251,0.00022606,2]
[363701759,1748825441612,-300.0,0.00022606,2]
[363701761,1748825441623,-2000.0,0.00022606,2]
[363701763,1748825441634,-2000.0,0.00022606,2]
[363701765,1748825441647,-300.0,0.00022606,2]
[363701767,1748825441658,-181.41279037,0.00022606,2]
[363701770,1748825441670,-300.0,0.00022606,2]
[363701772,1748825441682,-1774.072344,0.00022659,7]
[363701774,1748825441694,-185.46833955,0.00022685,2]
[363701776,1748825441704,-500.0,0.000227,2]
[363701778,1748825441714,-500.0,0.000227,2]
[363701780,1748825441725,-500.0,0.000227,2]
[363701783,1748825441735,-561.80109613,0.000227,2]
[363701785,1748825441747,-500.0,0.000227,2]
[363701787,1748825441757,-500.0,0.000227,2]
[363701789,1748825441769,-500.0,0.000227,2]
[363701792,1748825441780,-500.0,0.000227,2]
[363701794,1748825441791,-320.1009062,0.000227,2]
[363701796,1748825441803,-500.0,0.000227,2]
[363701798,1748825441815,-500.0,0.000227,2]
[363701800,1748825441827,-501.00855688,0.000227,2]
[363701803,1748825441839,-500.0,0.000227,2]
[363701805,1748825441851,-500.0,0.000227,2]
[363701807,1748825441862,-500.0,0.000227,2]
[363701809,1748825441874,-158.71540175,0.000227,2]
[363701812,1748825441886,-160.19966336,0.000227,2]
[363701814,1748825441899,-500.16902464,0.000227,2]
[363701816,1748825441909,-160.19303722,0.000227,2]
[363701818,1748825441918,-500.0,0.000227,2]
[363701820,1748825441928,-578.41688806,0.000227,2]
[363701822,1748825441938,-649.21402904,0.000227,2]
[363701824,1748825441948,-500.0,0.000227,2]
[363701827,1748825441959,-500.0,0.000227,2]
[363701829,1748825441971,-823.0,0.00022766,2]
[363701831,1748825441984,-239.8002961,0.00022843,2]
[363701833,1748825441995,-500.0,0.00022843,2]
[363701836,1748825442007,-500.0,0.00022843,2]
[363701838,1748825442017,-500.0,0.00022843,2]
[363701840,1748825442027,-272.15343245,0.00022843,2]
[363701842,1748825442039,-500.0,0.00022843,2]
[363701844,1748825442050,-500.42226515,0.00022843,2]
[363701846,1748825442061,-600.0,0.00022848,2]
[363701849,1748825442073,-1774.072344,0.00022866,8]
[363701851,1748825442085,-185.43307616,0.00022986,2]
[363701853,1748825442095,-185.46833955,0.00022986,2]
[363701855,1748825442106,-185.43307614,0.00022986,2]
[363701857,1748825442116,-160.0,0.00023,3]
[363701859,1748825442126,-158.4848398,0.00023068,2]
[363701861,1748825442136,-176.4890519,0.00023068,2]
[363701864,1748825442147,-1144.7854742,0.00023068,2]
[363701866,1748825442158,-1774.072344,0.00023072,8]
[363701868,1748825442168,-751.56940287,0.00023086,2]
[363701870,1748825442179,-4602.66,0.00023089,3]
[363701872,1748825442190,-212.80060342,0.00023089,3]
[363701874,1748825442201,-423.51412927,0.00023089,3]
[363701876,1748825442212,-160.0,0.00023089,3]
[363701879,1748825442222,-229.3709046,0.00023089,3]
[363701881,1748825442232,-272.80097017,0.00023154,2]
[363701883,1748825442243,-5000.0,0.00023154,2]
[363701885,1748825442253,-151.0,0.00023176,7]
[363701887,1748825442263,-4000.0,0.00023188,3]
[363701889,1748825442274,-842.5625,0.00023188,3]
[363701891,1748825442284,-160.0,0.00023188,3]
[363701894,1748825442295,-2977.22,0.00023198,2]
[363701896,1748825442306,-151.0,0.000232,5]
[363701898,1748825442316,-1151.00274509,0.00023224,2]
[363701900,1748825442326,-5000.0,0.00023246,3]
[363701902,1748825442338,-500.0,0.00023248,2]
[363701904,1748825442348,-1000.0,0.00023248,2]
[363701907,1748825442360,-185.46833955,0.0002326,2]
[363701909,1748825442370,-1774.072344,0.00023279,8]
[363701911,1748825442380,-6000.0,0.00023288,3]
[363701913,1748825442391,-264.04,0.000233,7]
[363701915,1748825442402,-2162.844545,0.00023324,3]
[363701917,1748825442414,-2000.0,0.00023326,3]
[363701919,1748825442426,-1000.0,0.00023355,2]
[363701921,1748825442436,-367.1,0.00023367,3]
[363701923,1748825442447,-183.55,0.00023367,3]
[363701926,1748825442458,-550.69,0.00023367,3]
[363701928,1748825442468,-1151.00274508,0.00023368,2]
[363701930,1748825442478,-3000.0,0.00023388,3]
[363701932,1748825442489,-151.0,0.000234,5]
[363701934,1748825442499,-151.0,0.00023479,7]
[363701936,1748825442510,-151.0,0.00023479,7]
[363701938,1748825442521,-151.0,0.00023479,7]
[363701940,1748825442532,-151.0,0.00023479,7]
[363701943,1748825442543,-151.0,0.00023479,7]
[363701945,1748825442554,-2000.0,0.00023479,2]
[363701947,1748825442564,-156.17876976,0.00023479,2]
[363701949,1748825442575,-1774.072344,0.00023486,9]
[363701951,1748825442587,-8836.68,0.00023499,7]
[363701953,1748825442597,-151.0,0.000235,9]
[363701955,1748825442608,-2137.18,0.000235,2]
[363701957,1748825442618,-151.0,0.000235,7]
[363701959,1748825442629,-1151.00274508,0.00023512,2]
[363701962,1748825442640,-800.0,0.00023539,2]
[363701964,1748825442650,-224.0,0.000236,3]
[363701966,1748825442660,-224.62214764,0.000236,7]
[363701968,1748825442671,-151.0,0.000236,8]
[363701970,1748825442683,-151.0,0.000236,9]
[363701972,1748825442693,-960.0,0.0002363,2]
[363701974,1748825442703,-708.0,0.0002363,2]
[363701976,1748825442713,-2226.0,0.0002363,2]
[363701978,1748825442723,-405.0,0.0002363,2]
[363701980,1748825442734,-246.835,0.0002363,2]
[363701982,1748825442745,-1151.00274508,0.00023655,2]
[363701985,1748825442756,-1774.072344,0.00023693,9]
[363701987,1748825442767,-153.02,0.000237,31]
[363701989,1748825442777,-153.02,0.000237,31]
[363701991,1748825442788,-153.02,0.000237,31]
[363701993,1748825442799,-153.02,0.000237,31]
[363701995,1748825442811,-153.02,0.000237,31]
[363701998,1748825442822,-153.02,0.000237,31]
[363702000,1748825442833,-153.02,0.000237,31]
[363702019,1748825442990,-151.0,0.000237,6]
[363702021,1748825443005,-8534.10134727,0.000237,3]
[363702023,1748825443015,-229.3709046,0.000237,3]
[363702025,1748825443024,-5000.0,0.00023702,2]
[363702027,1748825443034,-160.0,0.0002375,5]
[363702029,1748825443043,-800.0,0.00023777,2]
[363702031,1748825443053,-800.0,0.00023782,2]
[363702034,1748825443063,-160.0,0.00023799,2]
[363702036,1748825443072,-1151.00274508,0.00023799,2]
[363702039,1748825443082,-1218.0570774,0.00023799,2]
[363702043,1748825443092,-177.30792644,0.00023799,2]
[363702045,1748825443102,-11820.10450435,0.000238,3]
[363702047,1748825443112,-51791.74353659,0.000238,2]
[363702050,1748825443122,-15474.90768519,0.000238,2]
[363702052,1748825443131,-64818.26311508,0.000238,7]
[363702063,1748825443231,-379.43009202,0.000238,7]
[363702066,1748825443244,-860.86693198,0.000238,7]
[363702069,1748825443268,-8113.76032311,0.000238,7]
[363702077,1748825443517,-9494.56001611,0.000238,7]
[363702084,1748825443572,-1668.97019674,0.000238,7]
[363702086,1748825443585,-1644.67106572,0.000238,7]
[363702088,1748825443597,-4594.05395025,0.000238,7]
[363702091,1748825443609,-6143.45331048,0.000238,7]
[363702093,1748825443621,-22761.72099851,0.000238,7]
[363702095,1748825443630,-151.0,0.000238,7]
[363702097,1748825443640,-151.0,0.000238,7]
[363702099,1748825443650,-151.0,0.000238,7]
[363702101,1748825443659,-151.0,0.000238,7]
[363702103,1748825443668,-408.21360791,0.000238,2]
[363702131,1748825446713,-430.0,0.00017607,2]
[363702132,1748825446723,-430.0,0.00017881,2]
[363702133,1748825446734,-430.0,0.00018155,2]
[363702134,1748825446744,-430.0,0.00018429,2]
[363702135,1748825446755,-430.0,0.00018703,2]
[363702136,1748825446765,-139.7943727,0.00018977,2]
[363702142,1748826182237,268.682003,0.00013699,2]
[363702144,1748826342078,10000.0,0.00022,120]
[363702146,1748826579800,-342.10279694,0.00015952,2]
[363702147,1748826587250,-231.02883716,0.00015952,2]
[363702148,1748826590907,-270.85279344,0.00015952,2]
[363702149,1748826592884,-182.57529871,0.00015952,2]
[363702170,1748826632933,-422.573341,0.0001557,2]
[363702171,1748826632944,-429.7188251,0.00015587,2]
[363702172,1748826632957,-3973.44027375,0.00015952,2]
[363702173,1748826632968,-965.0008538,0.00016276,2]
[363702174,1748826632978,-168.28931861,0.00016504,2]
[363702175,1748826632988,-1200.0,0.00016585,2]
[363702176,1748826632998,-300.0,0.00016586,2]
[363702177,1748826633008,-300.0,0.00016586,2]
[363702178,1748826633018,-300.0,0.00016586,2]
[363702179,1748826633029,-300.0,0.00016586,2]
[363702180,1748826633040,-300.0,0.00016586,2]
[363702182,1748826633050,-178.58420346,0.00016587,2]
[363702183,1748826638651,-4502.66510433,0.00016421,2]
[363702184,1748826638814,-497.33489567,0.00016421,2]
[363702185,1748826638824,-251.41579654,0.00016587,2]
[363702186,1748826638834,-430.0,0.00016587,2]
[363702187,1748826638844,-430.0,0.00016587,2]
[363702188,1748826638854,-430.0,0.00016587,2]
[363702189,1748826638864,-430.0,0.00016587,2]
[363702190,1748826638874,-430.0,0.00016587,2]
[363702191,1748826638885,-430.0,0.00016587,2]
[363702192,1748826638895,-430.0,0.00016587,2]
[363702193,1748826638905,-430.0,0.00016587,2]
[363702194,1748826638916,-430.0,0.00016587,2]
[363702195,1748826638927,-430.0,0.00016587,2]
[363702196,1748826638937,-430.0,0.00016587,2]
[363702197,1748826638948,-373.49871834,0.00016587,2]
[363702198,1748826638960,-7106.24847223,0.00016587,2]
[363702199,1748826638970,-24900.0,0.00016588,2]
[363702200,1748826638980,-230.287106,0.00016604,2]
[363702201,1748826638991,-500.0,0.00016859,2]
[363702202,1748826639002,-500.0,0.00016859,2]
[363702203,1748826639011,-500.0,0.00016859,2]
[363702204,1748826639022,-171.23449552,0.00016859,2]
[363702205,1748826639035,-500.0,0.00016859,2]
[363702206,1748826639047,-500.0,0.00016859,2]
[363702207,1748826639057,-500.0,0.00016859,2]
[363702208,1748826639067,-500.0,0.00016859,2]
[363702209,1748826639076,-500.0,0.00016859,2]
[363702210,1748826639085,-500.0,0.00016859,2]
[363702211,1748826639095,-500.0,0.00016859,2]
[363702212,1748826639105,-514.95646278,0.00016859,2]
[363702213,1748826639115,-500.0,0.00016859,2]
[363702214,1748826639125,-500.0,0.00016859,2]
[363702215,1748826639135,-500.0,0.00016859,2]
[363702216,1748826639145,-201.57328263,0.00016859,2]
[363702217,1748826639155,-500.0,0.00016859,2]
[363702218,1748826639166,-500.0,0.00016859,2]
[363702219,1748826639177,-500.0,0.00016859,2]
[363702220,1748826639188,-360.0,0.00016859,2]
[363702221,1748826639198,-500.0,0.00016859,2]
[363702222,1748826639212,-500.0,0.00016859,2]
[363702223,1748826639223,-500.0,0.00016859,2]
[363702224,1748826639233,-500.0,0.00016859,2]
[363702225,1748826639244,-205.61347495,0.00016859,2]
[363702226,1748826639254,-500.0,0.00016859,2]
[363702227,1748826639264,-500.0,0.00016859,2]
[363702228,1748826639274,-500.0,0.00016859,2]
[363702229,1748826639284,-500.0,0.00016859,2]
[363702230,1748826639294,-500.0,0.00016859,2]
[363702231,1748826639303,-500.0,0.00016859,2]
[363702232,1748826639313,-500.0,0.00016859,2]
[363702233,1748826639323,-500.0,0.00016859,2]
[363702234,1748826639333,-595.57433624,0.00016859,2]
[363702235,1748826639343,-500.0,0.00016859,2]
[363702236,1748826639352,-500.0,0.00016859,2]
[363702237,1748826639362,-500.0,0.00016859,2]
[363702238,1748826639371,-500.0,0.00016859,2]
[363702239,1748826639381,-500.0,0.00016859,2]
[363702240,1748826639392,-500.0,0.00016859,2]
[363702241,1748826639402,-500.0,0.00016859,2]
[363702242,1748826639412,-500.0,0.00016859,2]
[363702243,1748826639422,-500.0,0.00016859,2]
[363702244,1748826639432,-500.0,0.00016859,2]
[363702245,1748826639441,-454.44943564,0.00016859,2]
[363702246,1748826639451,-500.0,0.00016859,2]
[363702247,1748826639463,-500.0,0.00016859,2]
[363702248,1748826639474,-500.0,0.00016859,2]
[363702249,1748826639483,-500.0,0.00016859,2]
[363702250,1748826639493,-500.0,0.00016859,2]
[363702251,1748826639502,-281.22412048,0.00016859,2]
[363702252,1748826639512,-500.0,0.00016859,2]
[363702253,1748826639524,-500.0,0.00016859,2]
[363702254,1748826639534,-500.0,0.00016859,2]
[363702255,1748826639544,-500.0,0.00016859,2]
[363702256,1748826639553,-500.0,0.0001686,2]
[363702257,1748826639563,-430.0,0.00016861,2]
[363702258,1748826639573,-430.0,0.00016861,2]
[363702259,1748826639583,-430.0,0.00016861,2]
[363702260,1748826639592,-430.0,0.00016861,2]
[363702261,1748826639602,-430.0,0.00016861,2]
[363702262,1748826639612,-430.0,0.00016861,2]
[363702263,1748826639621,-430.0,0.00016861,2]
[363702264,1748826639632,-430.0,0.00016861,2]
[363702265,1748826639641,-430.0,0.00016861,2]
[363702266,1748826639650,-430.0,0.00016861,2]
[363702267,1748826639660,-429.985357,0.00016861,2]
[363702268,1748826639669,-430.0,0.00016861,2]
[363702269,1748826639679,-200.84248221,0.00016909,2]
[363702270,1748826639689,-500.0,0.00017134,2]
[363702271,1748826639702,-430.0,0.00017135,2]
[363702272,1748826639715,-430.0,0.00017135,2]
[363702273,1748826639726,-430.0,0.00017135,2]
[363702274,1748826639735,-430.0,0.00017135,2]
[363702275,1748826639746,-430.0,0.00017135,2]
[363702276,1748826639755,-430.0,0.00017135,2]
[363702277,1748826639765,-430.0,0.00017135,2]
[363702278,1748826639774,-430.0,0.00017135,2]
[363702279,1748826639784,-430.0,0.00017135,2]
[363702280,1748826639793,-430.0,0.00017135,2]
[363702281,1748826639803,-430.0,0.00017135,2]
[363702282,1748826639812,-500.0,0.00017408,2]
[363702283,1748826639822,-430.0,0.00017409,2]
[363702284,1748826639831,-430.0,0.00017409,2]
[363702285,1748826639841,-430.0,0.00017409,2]
[363702286,1748826639850,-430.0,0.00017409,2]
[363702287,1748826639859,-430.0,0.00017409,2]
[363702288,1748826639869,-551.47404927,0.00017409,2]
[363702289,1748826639878,-430.0,0.00017409,2]
[363702290,1748826639888,-430.0,0.00017409,2]
[363702291,1748826639897,-430.0,0.00017409,2]
[363702292,1748826639906,-430.0,0.00017409,2]
[363702293,1748826639916,-430.0,0.00017409,2]
[363702294,1748826639926,-300.38778876,0.00017455,2]
[363702295,1748826639935,-549.40032849,0.00017455,2]
[363702296,1748826639946,-500.0,0.00017455,2]
[363702297,1748826639959,-500.0,0.00017455,2]
[363702298,1748826639970,-500.0,0.00017455,2]
[363702299,1748826639981,-500.0,0.00017455,2]
[363702300,1748826639990,-500.0,0.00017455,2]
[363702301,1748826640001,-759.4,0.00017457,2]
[363702302,1748826640011,-255.78485559,0.00017462,2]
[363702303,1748826640021,-500.0,0.00017462,2]
[363702304,1748826640031,-500.0,0.00017462,2]
[363702305,1748826640050,-500.0,0.00017462,2]
[363702306,1748826640061,-152.0,0.00017576,2]
[363702307,1748826640072,-430.0,0.00017603,2]
[363702308,1748826640082,-500.0,0.00017682,2]
[363702309,1748826640092,-430.0,0.00017683,2]
[363702310,1748826640101,-430.0,0.00017683,2]
[363702311,1748826640112,-430.0,0.00017683,2]
[363702312,1748826640122,-430.0,0.00017683,2]
[363702313,1748826640132,-430.0,0.00017683,2]
[363702314,1748826640142,-430.0,0.00017683,2]
[363702315,1748826640151,-430.0,0.00017683,2]
[363702316,1748826640162,-430.0,0.00017683,2]
[363702317,1748826640173,-430.0,0.00017683,2]
[363702318,1748826640184,-430.0,0.00017683,2]
[363702319,1748826640193,-160.20197363,0.00017812,2]
[363702320,1748826640203,-500.0,0.00017812,2]
[363702322,1748826640215,-508.06183039,0.00017812,2]
[363702323,1748826640225,-588.55100323,0.00017812,2]
[363702324,1748826640235,-430.0,0.00017877,2]
[363702325,1748826640245,-2807.94430137,0.000179,2]
[363702326,1748826640254,-500.0,0.00017956,2]
[363702327,1748826640264,-430.0,0.00017957,2]
[363702328,1748826640274,-430.0,0.00017957,2]
[363702329,1748826640284,-430.0,0.00017957,2]
[363702330,1748826640294,-430.0,0.00017957,2]
[363702331,1748826640303,-430.0,0.00017957,2]
[363702332,1748826640313,-430.0,0.00017957,2]
[363702333,1748826640323,-152.67902719,0.00017957,2]
[363702334,1748826640333,-430.0,0.00017957,2]
[363702335,1748826640343,-430.0,0.00017957,2]
[363702336,1748826640352,-500.0,0.0001801,2]
[363702337,1748826640362,-1373.25363399,0.0001803,2]
[363702339,1748826640371,-500.0,0.0001805,2]
[363702340,1748826640381,-500.0,0.0001805,2]
[363702342,1748826640392,-500.0,0.0001805,2]
[363702344,1748826640409,-2807.9443012,0.00018107,2]
[363702347,1748826640419,-420.0,0.00018123,2]
[363702349,1748826640429,-420.0,0.00018123,2]
[363702351,1748826640438,-420.0,0.00018123,2]
[363702353,1748826640447,-420.0,0.00018123,2]
[363702371,1748826640610,-430.0,0.00018151,2]
[363702373,1748826640620,-1680.0,0.00018213,2]
[363702375,1748826640629,-189.73232052,0.0001823,2]
[363702377,1748826640639,-430.0,0.00018231,2]
[363702379,1748826640648,-430.0,0.00018231,2]
[363702381,1748826640658,-430.0,0.00018231,2]
[363702383,1748826640667,-421.41550594,0.00018231,2]
[363702385,1748826640676,-430.0,0.00018231,2]
[363702387,1748826640686,-430.0,0.00018231,2]
[363702389,1748826640695,-430.0,0.00018231,2]
[363702391,1748826640705,-430.0,0.00018231,2]
[363702393,1748826640716,-500.0,0.00018275,2]
[363702394,1748826640725,-1518.8,0.00018288,2]
[363702396,1748826640734,-2807.9443012,0.00018314,2]
[363702398,1748826640743,-430.0,0.00018425,2]
[363702400,1748826640753,-500.0,0.00018487,2]
[363702402,1748826640763,-500.0,0.00018487,2]
[363702404,1748826640773,-500.0,0.00018487,2]
[363702406,1748826640783,-500.0,0.00018487,2]
[363702408,1748826640792,-430.0,0.00018505,2]
[363702410,1748826640801,-430.0,0.00018505,2]
[363702412,1748826640811,-430.0,0.00018505,2]
[363702414,1748826640821,-430.0,0.00018505,2]
[363702416,1748826640831,-430.0,0.00018505,2]
[363702418,1748826640840,-430.0,0.00018505,2]
[363702420,1748826640849,-430.0,0.00018505,2]
[363702422,1748826640859,-2807.9443012,0.00018521,2]
[363702424,1748826640868,-500.0,0.00018627,2]
[363702426,1748826640878,-430.0,0.00018699,2]
[363702428,1748826640887,-2807.9443012,0.00018728,2]
[363702430,1748826640897,-500.0,0.00018763,2]
[363702432,1748826640907,-500.0,0.00018778,2]
[363702433,1748826640917,-430.0,0.00018779,2]
[363702435,1748826640927,-430.0,0.00018779,2]
[363702438,1748826640937,-430.0,0.00018779,2]
[363702440,1748826640947,-430.0,0.00018779,2]
[363702442,1748826640959,-430.0,0.00018779,2]
[363702443,1748826640973,-430.0,0.00018779,2]
[363702445,1748826640983,-430.0,0.00018779,2]